bitfinex/quotes_BTCUSD_20241004
["timestamp","ask_amount","ask_price","bid_price","bid_amount"]
[1728048719412,0.00164,61713.0,61712.0,4.03855253]
[1728048719630,0.00264,61713.0,61712.0,1.83463153]
[1728048720542,0.00264,61713.0,61712.0,1.84863153]
[1728048720810,0.00264,61713.0,61712.0,0.93777694]
[1728048721035,0.00264,61713.0,61712.0,0.63645249]
[1728048721329,0.00264,61713.0,61712.0,0.33937808]
[1728048721560,0.16468,61713.0,61712.0,0.028]
[1728048721821,0.62005109,61713.0,61712.0,0.028]
[1728048722055,0.43254944,61713.0,61700.0,0.00014837]
[1728048722269,0.324092,61711.0,61704.0,0.00014837]
[1728048722476,0.162048,61710.0,61705.0,0.00014837]
[1728048722731,0.162048,61710.0,61694.0,0.16318671]
[1728048722732,0.162064,61704.0,61700.0,0.00014837]
[1728048722934,0.162062,61705.0,61700.0,0.00014837]
[1728048723227,0.324117,61706.0,61701.0,0.00014837]
[1728048723228,0.16206,61706.0,61701.0,0.00014837]
[1728048723439,0.16206,61706.0,61684.0,0.005]
[1728048723440,0.0979,61700.0,61690.0,0.00014837]
[1728048723681,0.0979,61700.0,61687.0,0.00014837]
[1728048723682,0.324174,61696.0,61687.0,0.00014837]
[1728048723935,0.324174,61696.0,61685.0,0.24197646]
[1728048723936,0.162103,61689.0,61685.0,0.24197646]
[1728048724154,0.48267682,61695.0,61686.0,0.00014837]
[1728048724155,0.324192,61692.0,61686.0,0.00014837]
[1728048724389,0.162102,61690.0,61686.0,0.00014837]
[1728048724595,0.05197142,61691.0,61686.0,0.00014837]
[1728048724843,0.162117,61684.0,61682.0,0.00014837]
[1728048725082,0.16510925,61691.0,61670.0,0.24197646]
[1728048725083,0.162127,61680.0,61679.0,0.00014837]
[1728048725310,0.162144,61674.0,61670.0,0.24197646]
[1728048725535,0.0532198,61680.0,61671.0,0.3243]
[1728048725786,0.162122,61682.0,61676.0,0.00014837]
[1728048725787,0.24197646,61681.0,61676.0,0.00014837]
[1728048726018,0.02541917,61682.0,61676.0,0.00014837]
[1728048726260,0.24197646,61680.0,61676.0,0.00014837]
[1728048726497,0.24197646,61680.0,61673.0,0.32429]
[1728048726498,0.29539339,61680.0,61673.0,0.00014837]
[1728048726723,0.32427,61677.0,61669.0,0.00014837]
[1728048726957,0.05407416,61676.0,61669.0,0.00014837]
[1728048727189,0.162147,61673.0,61669.0,0.00014837]
[1728048727463,0.0905,61683.0,61669.0,0.00014837]
[1728048727707,0.28157426,61682.0,61669.0,0.00014837]
[1728048727937,0.24197646,61682.0,61681.0,0.00014837]
[1728048728174,0.162124,61681.0,61676.0,0.00014837]
[1728048728453,0.25262,61683.0,61676.0,0.00014837]
[1728048728692,0.0905,61683.0,61676.0,0.00014837]
[1728048728925,0.414738,61683.0,61679.0,0.00014837]
[1728048729272,0.0905,61683.0,61677.0,0.00014837]
[1728048729463,0.0905,61683.0,61682.0,0.16226937]
[1728048730187,0.163741,61691.0,61690.0,0.1621]
[1728048730188,0.001642,61691.0,61690.0,0.1621]
[1728048730467,0.001642,61691.0,61690.0,0.16224837]
[1728048730889,0.001642,61691.0,61690.0,0.26224837]
[1728048731390,0.001642,61691.0,61690.0,0.10014837]
[1728048731622,0.001642,61691.0,61690.0,0.00114837]
[1728048731857,0.001642,61691.0,61690.0,0.001]
[1728048732109,0.001642,61691.0,61689.0,0.00014837]
[1728048732584,0.24197646,61690.0,61689.0,0.00014837]
[1728048732827,0.001642,61691.0,61689.0,0.00014837]
[1728048733326,0.001642,61691.0,61681.0,0.324243]
[1728048733327,0.162108,61687.0,61686.0,0.00014837]
[1728048733618,0.162111,61686.0,61679.0,0.00014837]
[1728048733801,0.0922,61684.0,61679.0,0.00014837]
[1728048734062,0.0142287,61683.0,61680.0,0.162126]
[1728048734294,0.0142287,61683.0,61682.0,0.16226937]
[1728048734516,0.0142287,61683.0,61679.0,0.324254]
[1728048734517,0.0142287,61683.0,61679.0,0.00014837]
[1728048734778,0.162123,61682.0,61679.0,0.00114837]
[1728048735007,0.416433,61684.0,61679.0,0.00114837]
[1728048735008,0.11761604,61684.0,61683.0,0.00014837]
[1728048735251,0.20732935,61684.0,61683.0,0.00014837]
[1728048735557,0.20732935,61684.0,61679.0,0.00014837]
[1728048735558,0.36944535,61684.0,61679.0,0.00014837]
[1728048735747,0.0370192,61683.0,61682.0,0.003]
[1728048735954,0.0370192,61683.0,61682.0,0.00314837]
[1728048736447,0.0370192,61683.0,61682.0,0.003]
[1728048736909,0.1991392,61683.0,61679.0,0.00014837]
[1728048737129,0.11961604,61684.0,61682.0,0.00082]
[1728048737386,0.03704201,61683.0,61682.0,0.00082]
[1728048738119,0.25398653,61683.0,61682.0,0.00082]
[1728048738364,0.09186753,61683.0,61682.0,0.00082]
[1728048738604,0.09186753,61683.0,61682.0,0.00096837]
[1728048738890,0.9778248,61683.0,61682.0,0.00082]
[1728048739090,0.81134834,61683.0,61682.0,0.00082]
[1728048739330,0.64922934,61683.0,61667.0,0.00014837]
[1728048739572,0.162145,61673.0,61671.0,0.24197646]
[1728048739876,0.324289,61674.0,61667.0,0.00014837]
[1728048739972,0.324291,61673.0,61667.0,0.00014837]
[1728048740201,0.324289,61674.0,61667.0,0.00014837]
[1728048740202,0.0370721,61672.0,61667.0,0.00014837]
[1728048740673,0.21347703,61672.0,61670.0,0.00014837]
[1728048740909,0.07413752,61672.0,61670.0,0.00014837]
[1728048741144,0.03706542,61671.0,61670.0,0.00014837]
[1728048741934,0.06549287,61672.0,61671.0,0.00014837]
[1728048742107,0.06549287,61672.0,61671.0,0.16229837]
[1728048742587,0.0400721,61672.0,61671.0,0.16410298]
[1728048742838,0.0400721,61672.0,61671.0,0.16229837]
[1728048743068,0.0370721,61672.0,61671.0,0.16229837]
[1728048743317,0.0370721,61672.0,61671.0,0.43548508]
[1728048743531,0.0370721,61672.0,61671.0,0.42548508]
[1728048743774,0.24197646,61681.0,61680.0,0.16227537]
[1728048744031,0.24197646,61681.0,61680.0,0.00014837]
[1728048744235,0.24197646,61681.0,61672.0,0.1]
[1728048744236,0.40410046,61681.0,61677.0,0.00014837]
[1728048744492,0.416436,61684.0,61672.0,0.1]
[1728048744493,0.19916706,61680.0,61676.0,0.00014837]
[1728048744733,0.19916706,61680.0,61672.0,0.262147]
[1728048744734,0.01424254,61679.0,61677.0,0.00014837]
[1728048744959,0.03704018,61679.0,61675.0,0.00014837]
[1728048745200,0.03704018,61679.0,61669.0,0.1]
[1728048745201,0.03704018,61679.0,61674.0,0.00014837]
[1728048745441,0.324269,61677.0,61674.0,0.00014837]
[1728048745701,0.09078572,61676.0,61669.0,0.10014837]
[1728048745936,0.03704018,61675.0,61670.0,0.00014837]
[1728048746234,0.162154,61670.0,61667.0,0.00014837]
[1728048746460,0.13574018,61669.0,61660.0,0.24197646]
[1728048746681,0.13574018,61669.0,61662.0,0.00014837]
[1728048746682,0.324326,61667.0,61662.0,0.00014837]
[1728048746895,0.18758472,61667.0,61662.0,0.00014837]
[1728048747184,0.18758372,61667.0,61666.0,0.00014837]
[1728048747384,0.0624629,61667.0,61665.0,0.00014837]
[1728048747727,0.19920318,61666.0,61665.0,0.00014837]
[1728048748525,0.162171,61664.0,61661.0,0.00014837]
[1728048748543,0.162171,61664.0,61659.0,0.000821]
[1728048748544,0.162179,61660.0,61659.0,0.000821]
[1728048748987,0.24082584,61660.0,61659.0,0.000821]
[1728048749009,0.33126838,61660.0,61659.0,0.000821]
[1728048749447,0.49445509,61660.0,61659.0,0.000821]
[1728048749554,0.33126838,61660.0,61659.0,0.000821]
[1728048750011,0.2942282,61660.0,61659.0,0.000821]
[1728048750245,0.33147053,61660.0,61659.0,0.000821]
[1728048750479,0.3052282,61660.0,61659.0,0.001821]
[1728048750702,0.3152282,61660.0,61659.0,0.002821]
[1728048750947,0.3863544,61660.0,61659.0,0.000821]
[1728048751181,0.3863544,61660.0,61659.0,0.001821]
[1728048751182,0.42078329,61660.0,61659.0,0.001821]
[1728048751891,0.42778329,61660.0,61659.0,0.002821]
[1728048752576,0.51648329,61660.0,61659.0,0.001821]
[1728048752804,0.52948329,61660.0,61659.0,0.002821]
[1728048753013,0.52248329,61660.0,61659.0,0.001821]
[1728048753248,0.45458527,61660.0,61659.0,0.000821]
[1728048753984,0.46058527,61660.0,61659.0,0.002821]
[1728048754210,0.33153607,61660.0,61659.0,0.001821]
[1728048754433,0.16935707,61660.0,61659.0,0.00196937]
[1728048754667,0.17535707,61660.0,61659.0,0.00296937]
[1728048754923,0.17535707,61660.0,61659.0,0.0110792]
[1728048755203,0.17535707,61660.0,61639.0,0.429466]
[1728048755204,0.24874198,61660.0,61648.0,0.00014837]
[1728048755707,0.24874198,61660.0,61644.0,0.24197646]
[1728048755708,0.162219,61645.0,61644.0,0.24197646]
[1728048755911,0.19944718,61645.0,61644.0,0.24197646]
[1728048756150,0.19944718,61645.0,61644.0,0.00014837]
[1728048756151,0.03722818,61645.0,61644.0,0.00014837]
[1728048756373,0.06265869,61645.0,61644.0,0.16236937]
[1728048756907,0.06250499,61645.0,61644.0,0.16236937]
[1728048757398,0.06650499,61645.0,61644.0,0.16236937]
[1728048757634,0.06550499,61645.0,61644.0,0.16236937]
[1728048757888,0.06550499,61645.0,61644.0,0.16836937]
[1728048758152,0.01725941,61645.0,61644.0,0.16836937]
[1728048758631,0.01425941,61645.0,61644.0,0.16836937]
[1728048758901,0.01425941,61645.0,61644.0,0.17236937]
[1728048759634,0.098,61663.0,61657.0,0.16233537]
[1728048760112,0.260172,61663.0,61657.0,0.16233537]
[1728048760347,0.098,61663.0,61662.0,0.00014837]
[1728048761050,0.13765099,61663.0,61662.0,0.00014837]
[1728048761305,0.13498347,61663.0,61662.0,0.00014837]
[1728048761543,0.13498347,61663.0,61657.0,0.005]
[1728048761544,0.19043816,61663.0,61657.0,0.005]
[1728048761848,0.44473608,61658.0,61657.0,0.005]
[1728048762088,0.61683179,61658.0,61657.0,0.005]
[1728048762774,0.324375,61657.0,61649.0,0.00014837]
[1728048763068,0.11598347,61658.0,61652.0,0.00014837]
[1728048763069,0.09368761,61656.0,61652.0,0.00014837]
[1728048763319,0.162198,61653.0,61652.0,0.00014837]
[1728048763550,0.36136947,61655.0,61653.0,0.00877068]
[1728048763551,0.162195,61654.0,61653.0,0.00877068]
[1728048763773,0.19921868,61654.0,61652.0,0.00892998]
[1728048764024,0.03704847,61653.0,61652.0,0.00014837]
[1728048764552,0.03704847,61653.0,61652.0,0.00892998]
[1728048764786,0.03591952,61653.0,61652.0,0.00892998]
[1728048765032,0.03591952,61653.0,61652.0,0.43731669]
[1728048765362,0.013,61656.0,61655.0,0.167192]
[1728048765629,0.24197646,61676.0,61667.0,0.344561]
[1728048765630,0.24197646,61668.0,61667.0,0.344561]
[1728048765763,0.24197646,61668.0,61667.0,0.50789608]
[1728048766019,0.24197646,61676.0,61675.0,0.16228837]
[1728048766511,0.24197646,61676.0,61675.0,0.00933846]
[1728048766809,0.24197646,61676.0,61675.0,0.17133009]
[1728048766810,0.02280062,61676.0,61675.0,0.17133009]
[1728048767062,0.04822083,61676.0,61675.0,0.17133009]
[1728048767344,0.04922083,61676.0,61675.0,0.18233009]
[1728048767574,0.04822083,61676.0,61675.0,0.17133009]
[1728048767819,0.001642,61682.0,61681.0,0.16227237]
[1728048768050,0.001642,61682.0,61681.0,0.17139692]
[1728048768323,0.001642,61682.0,61681.0,0.27139692]
[1728048769209,0.001642,61682.0,61681.0,0.17139692]
[1728048769451,0.001642,61682.0,61681.0,0.17439692]
[1728048770164,0.02447362,61682.0,61681.0,0.00927292]
[1728048770424,0.04988823,61682.0,61681.0,0.18139692]
[1728048770900,0.04988823,61682.0,61681.0,0.17439692]
[1728048771147,0.024466,61682.0,61681.0,0.17439692]
[1728048771428,0.001642,61682.0,61681.0,0.17439692]
[1728048771635,0.001642,61682.0,61681.0,0.17139692]
[1728048771865,0.001642,61682.0,61681.0,0.17639692]
[1728048772097,0.002642,61682.0,61681.0,0.18239692]
[1728048772354,0.001642,61682.0,61681.0,0.17639692]
[1728048772828,0.002642,61682.0,61681.0,0.17739692]
[1728048773113,0.002642,61682.0,61681.0,0.01527292]
[1728048773307,0.002642,61682.0,61681.0,0.02027292]
[1728048773562,0.02552742,61682.0,61681.0,0.18239692]
[1728048773799,0.003642,61682.0,61681.0,0.19039692]
[1728048774532,0.003642,61682.0,61681.0,0.18539692]
[1728048774976,0.003642,61682.0,61681.0,0.19039692]
[1728048775200,0.001642,61682.0,61681.0,0.17639692]
[1728048775485,0.001642,61682.0,61681.0,0.17139692]
[1728048775704,0.001642,61682.0,61681.0,0.01427292]
[1728048776193,0.001642,61682.0,61681.0,0.00414837]
[1728048776431,0.002642,61682.0,61681.0,0.01527292]
[1728048776671,0.01693286,61682.0,61681.0,0.01827292]
[1728048777395,0.01693286,61682.0,61681.0,0.18039692]
[1728048777618,0.002642,61682.0,61681.0,0.18039692]
[1728048777852,0.001642,61682.0,61681.0,0.17439692]
[1728048778088,0.001642,61682.0,61681.0,0.43958363]
[1728048778558,0.001642,61682.0,61681.0,1.06270563]
[1728048778812,0.001642,61682.0,61681.0,1.49186763]
[1728048779022,0.001642,61682.0,61681.0,1.09822863]
[1728048779256,0.003642,61682.0,61681.0,1.01582963]
[1728048779510,0.002642,61682.0,61681.0,1.00282963]
[1728048779772,0.001642,61682.0,61681.0,0.51278363]
[1728048779957,0.001642,61682.0,61681.0,0.52678363]
[1728048779958,0.002642,61682.0,61681.0,0.52678363]
[1728048780664,0.002642,61682.0,61681.0,0.44858363]
[1728048780942,0.002642,61682.0,61681.0,0.28539692]
[1728048781201,0.003642,61682.0,61681.0,0.29939692]
[1728048781665,0.001642,61682.0,61681.0,0.27139692]
[1728048781884,0.002642,61682.0,61681.0,0.29939692]
[1728048782120,0.002642,61682.0,61681.0,0.28539692]
[1728048782393,0.001642,61682.0,61681.0,0.27139692]
[1728048782648,0.002642,61682.0,61681.0,0.45658363]
[1728048782961,0.002642,61682.0,61681.0,0.71204363]
[1728048783165,0.002642,61682.0,61681.0,0.53528363]
[1728048783413,0.002642,61682.0,61681.0,0.81271263]
[1728048783623,0.002642,61682.0,61681.0,0.84096461]
[1728048784116,0.001642,61682.0,61681.0,0.82996461]
[1728048784353,0.002642,61682.0,61681.0,0.84196461]
[1728048784873,0.001642,61682.0,61681.0,0.83196461]
[1728048785096,0.002642,61682.0,61681.0,0.84596461]
[1728048785364,0.002642,61682.0,61681.0,0.85796461]
[1728048785607,0.002642,61682.0,61681.0,0.84596461]
[1728048785833,0.002642,61682.0,61681.0,0.75879061]
[1728048787201,0.24361846,61691.0,61690.0,0.16424837]
[1728048787464,0.24361846,61691.0,61690.0,0.85640399]
[1728048787708,0.24361846,61691.0,61690.0,0.43446134]
[1728048787921,0.24361846,61691.0,61690.0,0.27127463]
[1728048787922,0.001642,61691.0,61690.0,0.27127463]
[1728048788443,0.002642,61691.0,61690.0,0.28527463]
[1728048788690,0.002642,61691.0,61690.0,0.46246134]
[1728048790870,0.002642,61691.0,61690.0,0.68812234]
[1728048791118,0.002642,61691.0,61690.0,0.76892234]
[1728048791613,0.002642,61691.0,61690.0,0.70009434]
[1728048791863,0.002642,61691.0,61690.0,0.54326134]
[1728048792342,0.002642,61691.0,61690.0,0.56626134]
[1728048792812,0.002642,61691.0,61690.0,0.36246134]
[1728048794527,0.002642,61691.0,61690.0,0.19927463]
[1728048794798,0.002642,61691.0,61690.0,0.29927463]
[1728048794982,0.01700168,61691.0,61690.0,0.29927463]
[1728048795214,0.002642,61691.0,61690.0,0.29927463]
[1728048795488,0.002642,61691.0,61690.0,0.19927463]
[1728048795489,0.094742,61691.0,61690.0,0.19927463]
[1728048795674,0.13208724,61691.0,61690.0,0.19927463]
[1728048795915,0.13208724,61691.0,61690.0,0.18527463]
[1728048796140,0.13208724,61691.0,61690.0,0.34846134]
[1728048796799,0.01600168,61691.0,61690.0,0.34246134]
[1728048796802,0.01700168,61691.0,61690.0,0.34946134]
[1728048797029,0.01602824,61691.0,61690.0,0.27912626]
[1728048797263,0.01602824,61691.0,61690.0,0.01717463]
[1728048797500,0.11202824,61691.0,61690.0,0.01917463]
[1728048797759,0.13504476,61691.0,61690.0,0.01]
[1728048798006,0.12205397,61691.0,61687.0,0.32436237]
[1728048798258,0.16051881,61691.0,61690.0,0.1691]
[1728048798601,0.16051881,61691.0,61688.0,0.00904809]
[1728048798602,0.162103,61689.0,61688.0,0.00904809]
[1728048798748,0.340345,61673.0,61672.0,0.24197646]
[1728048798995,0.62238498,61673.0,61672.0,0.24197646]
[1728048799247,0.62238498,61673.0,61649.0,0.144584]
[1728048799248,0.095,61664.0,61657.0,0.00014837]
[1728048799499,0.40270482,61673.0,61656.0,0.29099212]
[1728048799500,0.162187,61657.0,61656.0,0.29099212]
[1728048799776,0.1782,61662.0,61661.0,0.162177]
[1728048799974,0.1782,61662.0,61656.0,0.01100043]
[1728048800206,0.1782,61662.0,61661.0,0.01012478]
[1728048800436,0.1782,61662.0,61656.0,0.000821]
[1728048800437,0.1782,61662.0,61657.0,0.162185]
[1728048800710,0.36579907,61662.0,61661.0,0.01012478]
[1728048800942,0.03736405,61661.0,61657.0,0.162186]
[1728048801188,0.02299326,61660.0,61656.0,0.000821]
[1728048801407,0.03736405,61659.0,61658.0,0.16233237]
[1728048802352,0.01437079,61659.0,61658.0,0.16233237]
[1728048803840,0.12042407,61662.0,61661.0,0.00014837]
[1728048804064,0.02542407,61662.0,61661.0,0.16232537]
[1728048804316,0.0982,61673.0,61669.0,0.162156]
[1728048804579,0.02542325,61671.0,61669.0,0.162156]
[1728048804818,0.03726294,61670.0,61669.0,0.16230437]
[1728048805560,0.0143319,61670.0,61669.0,0.16230437]
[1728048805798,0.02542325,61671.0,61670.0,0.00014837]
[1728048806038,0.02542325,61671.0,61670.0,0.16230137]
[1728048806039,0.03976811,61671.0,61670.0,0.16230137]
[1728048806255,0.02542325,61671.0,61670.0,0.16230137]
[1728048806763,0.02542325,61671.0,61670.0,0.26230137]
[1728048807229,0.02542325,61671.0,61670.0,0.42973338]
[1728048807454,0.02542325,61671.0,61670.0,0.42848808]
[1728048807670,0.02642325,61671.0,61670.0,0.27330137]
[1728048807930,0.02742325,61671.0,61670.0,0.28330137]
[1728048808144,0.02742325,61671.0,61670.0,0.18330137]
[1728048808380,0.04176692,61671.0,61670.0,0.18330137]
[1728048808830,0.04176207,61671.0,61670.0,0.183153]
[1728048809774,0.04076207,61671.0,61670.0,0.173153]
[1728048810226,0.04476207,61671.0,61670.0,0.162153]
[1728048810476,0.04476207,61671.0,61670.0,0.163153]
[1728048810708,0.04476207,61671.0,61670.0,0.162153]
[1728048810709,0.03976207,61671.0,61670.0,0.162153]
[1728048811162,0.03976207,61671.0,61670.0,0.267153]
[1728048811395,0.0982,61673.0,61672.0,0.162148]
[1728048812145,0.0982,61673.0,61671.0,0.16215]
[1728048812384,0.0982,61673.0,61670.0,0.000821]
[1728048812385,0.23745,61671.0,61670.0,0.000821]
[1728048812619,0.11654154,61671.0,61670.0,0.16312237]
[1728048812859,0.01832485,61671.0,61670.0,0.16312237]
[1728048813086,0.01432485,61671.0,61670.0,0.17314881]
[1728048813551,0.01432485,61671.0,61670.0,0.17714881]
[1728048813848,0.004,61673.0,61672.0,0.16229637]
[1728048814038,0.24197646,61684.0,61680.0,0.162127]
[1728048814039,0.0938,61681.0,61680.0,0.162127]
[1728048814267,0.24197646,61684.0,61680.0,0.162127]
[1728048814268,0.24197646,61684.0,61683.0,0.162119]
[1728048814544,0.24197646,61684.0,61683.0,0.16226737]
[1728048814771,0.11921489,61690.0,61689.0,0.16225137]
[1728048814999,0.15649271,61690.0,61689.0,0.00014837]
[1728048815246,0.15649271,61690.0,61689.0,0.17443822]
[1728048816045,0.13355251,61690.0,61689.0,0.17443822]
[1728048816187,0.02541489,61690.0,61689.0,0.33762493]
[1728048816431,0.02541489,61690.0,61689.0,0.46062493]
[1728048816667,0.001642,61691.0,61690.0,0.28524837]
[1728048816907,0.001642,61691.0,61690.0,2.32356408]
[1728048817157,0.001642,61691.0,61690.0,1.27516308]
[1728048817379,0.24197646,61708.0,61699.0,0.29222537]
[1728048817618,0.24197646,61708.0,61699.0,1.12748806]
[1728048817852,0.24197646,61708.0,61699.0,0.90311287]
[1728048818062,0.24197646,61708.0,61707.0,0.262056]
[1728048818286,0.24197646,61708.0,61707.0,0.42539108]
[1728048818563,0.00164,61713.0,61708.0,0.26220137]
[1728048818764,0.00164,61713.0,61708.0,0.42538808]
[1728048818989,0.00164,61713.0,61708.0,0.4276562]
[1728048819234,0.00164,61713.0,61708.0,0.69263266]
[1728048819517,0.00164,61713.0,61712.0,0.16719137]
[1728048819776,0.02540673,61717.0,61716.0,0.72278016]
[1728048820014,0.24361646,61722.0,61720.0,0.28717037]
[1728048820252,0.24361646,61722.0,61720.0,0.45535708]
[1728048820484,0.24361646,61722.0,61720.0,2.30085408]
[1728048820718,0.00164,61722.0,61720.0,1.98940408]
[1728048820935,0.00164,61722.0,61720.0,0.62777608]
[1728048821173,0.00164,61722.0,61720.0,0.62977608]
[1728048821401,0.00164,61722.0,61720.0,0.44835708]
[1728048822131,0.00164,61722.0,61720.0,0.42535708]
[1728048822392,0.00264,61721.0,61720.0,0.17837547]
[1728048822621,0.10154,61721.0,61720.0,0.17837547]
[1728048822858,0.10054,61721.0,61720.0,0.16437547]
[1728048823095,0.10154,61721.0,61720.0,0.17337547]
[1728048823347,0.00364,61721.0,61720.0,0.37256218]
[1728048823591,0.00364,61721.0,61720.0,2.32257918]
[1728048823592,0.00164,61721.0,61720.0,2.32257918]
[1728048823811,0.00164,61721.0,61720.0,0.45656218]
[1728048823812,0.00264,61721.0,61720.0,0.45656218]
[1728048824030,0.00164,61721.0,61720.0,0.45556218]
[1728048824496,0.00264,61721.0,61720.0,0.46556218]
[1728048824812,0.00164,61721.0,61720.0,0.45556218]
[1728048825250,0.00164,61721.0,61720.0,0.42756218]
[1728048825491,0.00264,61721.0,61720.0,0.43456218]
[1728048825700,0.00264,61721.0,61720.0,0.27137547]
[1728048825922,0.00164,61721.0,61720.0,0.26437547]
[1728048826208,0.00264,61721.0,61720.0,0.27737547]
[1728048826437,0.00264,61721.0,61720.0,0.27337547]
[1728048826671,0.00364,61721.0,61720.0,0.28337547]
[1728048826908,0.00264,61721.0,61720.0,0.27437547]
[1728048827131,0.00364,61721.0,61720.0,0.28337547]
[1728048830220,0.00364,61721.0,61720.0,0.2936571]
[1728048831145,0.00364,61721.0,61720.0,0.45684381]
[1728048831606,0.00364,61721.0,61720.0,0.47984381]
[1728048832825,0.00364,61721.0,61720.0,0.2936571]
[1728048835646,0.10324,61721.0,61720.0,0.29350873]
[1728048836116,0.10324,61721.0,61720.0,0.2936571]
[1728048836368,0.10224,61721.0,61720.0,0.2846571]
[1728048836598,0.10124,61721.0,61720.0,0.2746571]
[1728048836836,0.10124,61721.0,61720.0,0.2756571]
[1728048837072,0.10124,61721.0,61720.0,0.2746571]
[1728048837554,0.10124,61721.0,61720.0,0.2796571]
[1728048837811,0.10124,61721.0,61720.0,0.11848673]
[1728048838056,0.10124,61721.0,61720.0,0.01848673]
[1728048838305,0.10124,61721.0,61720.0,0.17950873]
[1728048838531,0.10124,61721.0,61720.0,0.1806571]
[1728048839752,0.10124,61721.0,61720.0,0.1756571]
[1728048840212,0.10124,61721.0,61720.0,0.1776571]
[1728048840726,0.11549852,61721.0,61720.0,0.1776571]
[1728048840959,0.10124,61721.0,61720.0,0.1776571]
[1728048841190,0.00164,61721.0,61720.0,0.2776571]
[1728048842703,0.015924,61721.0,61720.0,0.44084381]
[1728048843185,0.00164,61721.0,61720.0,0.44084381]
[1728048843979,0.00164,61721.0,61720.0,0.46384381]
[1728048844467,0.00164,61721.0,61720.0,0.91272516]
[1728048844760,0.00164,61721.0,61720.0,0.61619916]
[1728048845059,0.00264,61721.0,61720.0,0.58361716]
[1728048845307,0.00264,61721.0,61720.0,0.58561716]
[1728048845514,0.00264,61721.0,61720.0,0.66821716]
[1728048845764,0.00264,61721.0,61720.0,0.67321716]
[1728048845993,0.00264,61721.0,61720.0,0.6893443]
[1728048846259,0.00264,61721.0,61720.0,0.6993443]
[1728048846260,0.00364,61721.0,61720.0,0.6993443]
[1728048846508,0.00364,61721.0,61720.0,0.6973443]
[1728048847001,0.00364,61721.0,61720.0,0.70734773]
[1728048847002,0.00164,61721.0,61720.0,0.70734773]
[1728048847281,0.00164,61721.0,61720.0,0.71534773]
[1728048847537,1e-06,61723.0,61722.0,0.29016437]
[1728048847810,1e-06,61726.0,61725.0,0.29015637]
[1728048848093,1e-06,61726.0,61725.0,0.47147022]
[1728048848354,1e-06,61726.0,61725.0,3.12143665]
[1728048848590,1e-06,61726.0,61725.0,1.53747565]
[1728048849384,1e-06,61726.0,61725.0,1.54247565]
[1728048849614,0.001642,61739.0,61728.0,0.57201299]
[1728048849615,1e-06,61729.0,61728.0,0.57201299]
[1728048849866,1e-06,61729.0,61728.0,2.78713927]
[1728048850100,1e-06,61729.0,61728.0,2.62032627]
[1728048850580,1e-06,61729.0,61728.0,1.56184127]
[1728048850927,1e-06,61729.0,61728.0,1.46443784]
[1728048851105,1e-06,61729.0,61728.0,0.75332684]
[1728048851382,1e-06,61729.0,61728.0,0.77733027]
[1728048851591,1e-06,61729.0,61728.0,0.80147605]
[1728048851819,1e-06,61729.0,61728.0,0.75650859]
[1728048852060,1e-06,61729.0,61728.0,0.76029539]
[1728048852309,1e-06,61729.0,61728.0,0.75650859]
[1728048852548,1e-06,61729.0,61728.0,0.77050859]
[1728048852783,1e-06,61729.0,61728.0,0.44664497]
[1728048853055,1e-06,61729.0,61728.0,0.74750859]
[1728048853296,1e-06,61729.0,61728.0,1.42771059]
[1728048853541,1e-06,61729.0,61728.0,1.44549739]
[1728048853821,1e-06,61729.0,61728.0,1.42771059]
[1728048854075,0.24197646,61743.0,61742.0,0.26211237]
[1728048854338,0.25639613,61743.0,61742.0,0.44829908]
[1728048854569,0.25639613,61743.0,61742.0,0.71661772]
[1728048854802,0.001642,61744.0,61743.0,0.28510937]
[1728048855074,0.001642,61744.0,61743.0,1.4015837]
[1728048855319,0.001642,61744.0,61743.0,1.4898837]
[1728048855507,0.001642,61744.0,61743.0,1.49396809]
[1728048856274,0.001642,61753.0,61751.0,0.56695199]
[1728048856554,0.001642,61753.0,61751.0,0.7301387]
[1728048856801,0.001642,61753.0,61752.0,0.29008637]
[1728048857087,4e-07,61755.0,61754.0,0.29008037]
[1728048857334,4e-07,61755.0,61754.0,0.45326708]
[1728048857593,4e-07,61755.0,61754.0,0.45529377]
[1728048858054,0.24197646,61773.0,61772.0,0.00014837]
[1728048858311,0.0002,61779.0,61778.0,0.161869]
[1728048858547,0.01458926,61779.0,61778.0,0.34805571]
[1728048858808,0.01458926,61779.0,61778.0,0.17274461]
[1728048859058,0.01458926,61779.0,61778.0,0.17464548]
[1728048859307,0.0002,61779.0,61778.0,0.17479385]
[1728048859818,0.0145937,61779.0,61778.0,0.17464548]
[1728048860069,0.0145937,61779.0,61778.0,0.17664548]
[1728048860318,0.0145937,61779.0,61778.0,0.01477648]
[1728048860839,0.0145937,61779.0,61778.0,0.01186378]
[1728048861803,0.323741,61778.0,61772.0,0.1]
[1728048862020,0.161875,61776.0,61772.0,0.1]
[1728048862249,0.0143937,61775.0,61772.0,0.1]
[1728048862495,0.161878,61775.0,61772.0,0.1]
[1728048862729,0.0002,61779.0,61773.0,0.10192708]
[1728048863023,0.02537774,61775.0,61773.0,0.10192708]
[1728048863272,0.0947,61775.0,61773.0,0.00192708]
[1728048863503,0.1744,61775.0,61773.0,0.00192708]
[1728048863735,0.36165618,61775.0,61771.0,0.161887]
[1728048864003,0.36165618,61775.0,61769.0,0.1]
[1728048864004,0.19977818,61775.0,61769.0,0.1]
[1728048864273,0.12007818,61775.0,61774.0,0.16188]
[1728048864472,0.002,61775.0,61774.0,0.44806671]
[1728048864943,0.0002,61779.0,61778.0,0.261869]
[1728048865191,0.0002,61779.0,61778.0,0.72991933]
[1728048866157,0.0002,61779.0,61778.0,0.73891933]
[1728048866336,0.0002,61779.0,61778.0,0.7390677]
[1728048866592,0.0002,61779.0,61778.0,0.27101737]
[1728048867574,0.0002,61779.0,61778.0,0.009]
[1728048867828,0.0002,61779.0,61778.0,0.178869]
[1728048868103,0.0002,61779.0,61778.0,0.017]
[1728048868104,0.02557464,61779.0,61778.0,0.017]
[1728048868374,0.02557464,61779.0,61778.0,0.169869]
[1728048868596,0.19827464,61779.0,61778.0,0.01]
[1728048868792,0.19827464,61779.0,61777.0,0.161872]
[1728048869011,0.19827464,61779.0,61778.0,0.161869]
[1728048869751,0.12187464,61779.0,61778.0,0.44373262]
[1728048869921,0.12187464,61779.0,61778.0,0.72991933]
[1728048869922,0.02557464,61779.0,61778.0,0.72991933]
[1728048870147,0.0002,61779.0,61778.0,0.72991933]
[1728048870464,0.00102,61779.0,61778.0,0.72991933]
[1728048870898,0.00402,61779.0,61778.0,0.72991933]